[Event "FISCA Open 2022"]
[Site "Cap Aurora"]
[Date "2022.06.22"]
[Round "1.10"]
[White "Trifoi, Mihaela-Ioana"]
[Black "Socolov, Victor"]
[Result "1-0"]
[ECO "C54"]
[WhiteElo "1949"]
[BlackElo "1516"]
[Annotator "NA RC"]
[PlyCount "81"]
[EventDate "2022.06.22"]
[EventType "swiss"]
[EventCountry "ROU"]
[SourceTitle "playchess.com"]
[Source "ChessBase"]
[SourceQuality "1"]
[TimeControl "5400+30"]

1. e4 {[%emt 0:00:03]} e5 {[%emt 0:00:24]} 2. Nf3 {[%emt 0:00:07]} Nc6 {[%emt 0:00:16]} 3. Bc4 {[%emt 0:00:07]} Nf6 {[%emt 0:00:13]} 4. d3 {[%emt 0:00:05]} h6 {[%emt 0:00:19]} 5. Bb3 {[%emt 0:00:10]} Bc5 {[%emt 0:01:21]} 6. O-O {[%emt 0:00:10]} O-O {[%emt 0:00:12]} 7. Nbd2 {[%emt 0:00:06]} d6 {[%emt 0:00:22]} 8. c3 {[%emt 0:00:06]} Bg4 {[%emt 0:00:56]} 9. h3 {[%emt 0:00:06]} Be6 {[%emt 0:00:48]} 10. Bc2 {[%emt 0:00:07]} a5 {[%emt 0:00:55]} 11. Re1 {[%emt 0:00:13]} Bd7 {[%emt 0:03:55]} 12. Nf1 {[%emt 0:01:31]} Ne7 {[%emt 0:00:46]} 13. Ng3 {[%emt 0:02:06]} Qc8 {[%emt 0:00:57]} 14. d4 {[%emt 0:01:20]} exd4 {[%emt 0:00:31]} 15. cxd4 {[%emt 0:00:11]} Bb6 {[%emt 0:00:39]} 16. Be3 {[%emt 0:01:35]} Ng6 {[%emt 0:02:37]} 17. Qd2 {[%emt 0:03:58]} a4 {[%emt 0:05:20]} 18. b4 {[%emt 0:00:44]} axb3 {[%emt 0:01:07]} 19. axb3 {[%emt 0:00:06]} Rxa1 {[%emt 0:00:19]} 20. Rxa1 {[%emt 0:00:06]} Kh7 {[%emt 0:08:28]} 21. e5 {[%emt 0:06:36]} Nd5 {[%emt 0:03:22]} 22. h4 {[%emt 0:00:52]} Nxe3 {[%emt 0:01:09]} 23. fxe3 {[%emt 0:00:53]} Kg8 {[%emt 0:00:40]} 24. h5 {[%emt 0:00:40]} Ne7 {[%emt 0:02:17]} 25. Qd3 {[%emt 0:05:08]} g6 {[%emt 0:00:23]} 26. Nh4 {[%emt 0:04:32]} dxe5 {[%emt 0:02:55]} 27. hxg6 {[%emt 0:01:46]} f5 {[%emt 0:00:25]} 28. dxe5 {[%emt 0:02:00]} Be6 {[%emt 0:02:50]} 29. Nh5 {[%emt 0:01:10]} Nd5 {[%emt 0:00:58]} 30. Re1 {[%emt 0:07:41]} Qd8 {[%emt 0:05:22]} 31. Nf6+ {[%emt 0:01:56]} Nxf6 {[%emt 0:00:44]} 32. Qxd8 {[%emt 0:00:09]} Rxd8 {[%emt 0:00:54]} 33. exf6 {[%emt 0:00:06]} f4 {[%emt 0:00:30]} 34. Nf3 {[%emt 0:11:19]} fxe3 {[%emt 0:02:15]} 35. Kh2 {[%emt 0:06:47]} c6 {[%emt 0:01:51]} 36. b4 {[%emt 0:07:04]} Rd5 {[%emt 0:00:56]} 37. g4 {[%emt 0:06:13]} Rb5 {[%emt 0:00:59]} 38. Ra1 {[%emt 0:03:06]} Ba5 {[%emt 0:03:00]} 39. Rxa5 {[%emt 0:00:47]} Rxa5 {[%emt 0:00:02]} 40. bxa5 {[%emt 0:00:06]} Bxg4 {[%emt 0:00:05]} 41. Bb3+ {[%emt 0:00:14]} 1-0

[Event "FISCA Open 2022"]
[Site "Cap Aurora"]
[Date "2022.06.22"]
[Round "1.11"]
[White "Ivancescu, Bogdan-Andrei"]
[Black "Capragiu, Matei-Stefan"]
[Result "1-0"]
[ECO "C00"]
[WhiteElo "1512"]
[BlackElo "1925"]
[Annotator "NA RC"]
[PlyCount "35"]
[EventDate "2022.06.22"]
[EventType "swiss"]
[EventCountry "ROU"]
[SourceTitle "playchess.com"]
[Source "ChessBase"]
[SourceQuality "1"]
[TimeControl "5400+30"]

1. e4 {[%emt 0:00:01]} e6 {[%emt 0:00:05]} 2. f4 {[%emt 0:00:18]} d5 {[%emt 0:00:07]} 3. e5 {[%emt 0:00:08]} c5 {[%emt 0:00:09]} 4. Nf3 {[%emt 0:00:23]} Nc6 {[%emt 0:01:02]} 5. c3 {[%emt 0:00:28]} Nge7 {[%emt 0:01:45]} 6. Na3 {[%emt 0:01:10]} Nf5 {[%emt 0:01:01]} 7. Nc2 {[%emt 0:01:30]} d4 {[%emt 0:01:01]} 8. Bd3 {[%emt 0:01:24]} Be7 {[%emt 0:15:22]} 9. g4 {[%emt 0:10:57]} Nh4 {[%emt 0:01:20]} 10. c4 {[%emt 0:06:11]} Ng2+ {[%emt 0:02:37]} 11. Kf2 {[%emt 0:02:37]} Nxf4 {[%emt 0:01:03]} 12. Qf1 {[%emt 0:01:11]} Qc7 {[%emt 0:02:14]} 13. Nce1 {[%emt 0:01:48]} Nxe5 {[%emt 0:02:55]} 14. Nxe5 {[%emt 0:00:09]} Qxe5 {[%emt 0:00:07]} 15. Nf3 {[%emt 0:00:05]} Nxd3+ {[%emt 0:01:23]} 16. Qxd3 {[%emt 0:00:09]} Qf4 {[%emt 0:01:02]} 17. Rg1 {[%emt 0:00:54]} e5 {[%emt 0:00:34]} 18. h3 {[%emt 0:06:17]} 1-0

[Event "FISCA Open 2022"]
[Site "Cap Aurora"]
[Date "2022.06.22"]
[Round "1.12"]
[White "Ribarov, Valerij"]
[Black "Cojanu, Ion"]
[Result "1-0"]
[ECO "A30"]
[WhiteElo "1918"]
[BlackElo "1508"]
[Annotator "NA RC"]
[PlyCount "20"]
[EventDate "2022.06.22"]
[EventType "swiss"]
[EventCountry "ROU"]
[SourceTitle "playchess.com"]
[Source "ChessBase"]
[SourceQuality "1"]
[TimeControl "5400+30"]

1. c4 {[%emt 1:31:00]} c5 {[%emt 1:31:00]} 2. Nf3 {[%emt 0:00:30]} Nc6 {[%emt 0:00:30]} 3. d4 {[%emt 0:00:30]} Nxd4 {[%emt 0:00:30]} 4. Nxd4 {[%emt 0:00:30]} Qb6 {[%emt 0:00:30]} 5. Nb3 {[%emt 0:00:30]} e6 {[%emt 0:00:30]} 6. Be3 {[%emt 0:00:30]} Qd8 {[%emt 0:00:30]} 7. a3 {[%emt 0:00:30]} a6 {[%emt 0:00:30]} 8. Nc3 {[%emt 0:00:30]} Qc7 {[%emt 0:00:30]} 9. Qc2 {[%emt 0:00:30]} d6 {[%emt 0:00:30]} 10. f4 {[%emt 0:00:30]} Nf6 {[%emt 0:00:30]} 1-0

[Event "FISCA Open 2022"]
[Site "Cap Aurora"]
[Date "2022.06.22"]
[Round "1.13"]
[White "Togan, Teodor-Bogdan"]
[Black "Stegaroiu, Marcel-Florian"]
[Result "1/2-1/2"]
[ECO "C55"]
[WhiteElo "1507"]
[BlackElo "1917"]
[Annotator "NA RC"]
[PlyCount "105"]
[EventDate "2022.06.22"]
[EventType "swiss"]
[EventCountry "ROU"]
[SourceTitle "playchess.com"]
[Source "ChessBase"]
[SourceQuality "1"]
[TimeControl "5400+30"]

1. e4 {[%emt 0:00:02]} e5 {[%emt 0:00:16]} 2. Nf3 {[%emt 0:00:03]} Nc6 {[%emt 0:00:14]} 3. Bc4 {[%emt 0:00:10]} Be7 {[%emt 0:00:45]} 4. d3 {[%emt 0:00:30]} Nf6 {[%emt 0:00:23]} 5. Bb3 {[%emt 0:00:28]} O-O {[%emt 0:00:24]} 6. O-O {[%emt 0:00:26]} d5 {[%emt 0:03:27]} 7. exd5 {[%emt 0:02:42]} Nxd5 {[%emt 0:00:07]} 8. Re1 {[%emt 0:00:41]} Bf6 {[%emt 0:00:53]} 9. Ba4 {[%emt 0:04:35]} Nde7 {[%emt 0:02:32]} 10. Nc3 {[%emt 0:02:40]} Ng6 {[%emt 0:04:48]} 11. Bxc6 {[%emt 0:05:26]} bxc6 {[%emt 0:00:14]} 12. Be3 {[%emt 0:05:48]} Be7 {[%emt 0:02:20]} 13. Qd2 {[%emt 0:08:45]} Bg4 {[%emt 0:01:16]} 14. Ng5 {[%emt 0:09:50]} h6 {[%emt 0:00:32]} 15. f3 {[%emt 0:06:20]} Bf5 {[%emt 0:10:36]} 16. Nge4 {[%emt 0:00:34]} Be6 {[%emt 0:02:44]} 17. Nc5 {[%emt 0:10:27]} Bd5 {[%emt 0:01:26]} 18. Nb3 {[%emt 0:03:23]} Nh4 {[%emt 0:03:13]} 19. Rf1 {[%emt 0:02:34]} f5 {[%emt 0:04:46]} 20. Bf2 {[%emt 0:12:39]} Ng6 {[%emt 0:03:42]} 21. Rfe1 {[%emt 0:07:23]} Re8 {[%emt 0:03:51]} 22. Rad1 {[%emt 0:01:48]} Bh4 {[%emt 0:02:23]} 23. d4 {[%emt 0:01:00]} Bxf2+ {[%emt 0:14:18]} 24. Qxf2 {[%emt 0:00:19]} Qf6 {[%emt 0:08:16]} 25. dxe5 {[%emt 0:00:48]} Rxe5 {[%emt 0:00:33]} 26. Rxe5 {[%emt 0:00:13]} Qxe5 {[%emt 0:00:14]} 27. Qd4 {[%emt 0:01:23]} Bxb3 {[%emt 0:09:28]} 28. Qxe5 {[%emt 0:00:20]} Nxe5 {[%emt 0:00:08]} 29. axb3 {[%emt 0:00:05]} g5 {[%emt 0:01:09]} 30. Rd4 {[%emt 0:00:47]} Kf7 {[%emt 0:03:32]} 31. f4 {[%emt 0:03:47]} gxf4 {[%emt 0:00:22]} 32. Rxf4 {[%emt 0:00:08]} Ke6 {[%emt 0:01:51]} 33. Ne2 {[%emt 0:00:43]} c5 {[%emt 0:00:51]} 34. Ng3 {[%emt 0:01:41]} Rf8 {[%emt 0:01:43]} 35. Rh4 {[%emt 0:00:11]} f4 {[%emt 0:03:30]} 36. Rxh6+ {[%emt 0:00:44]} Kd5 {[%emt 0:00:11]} 37. Ne2 {[%emt 0:01:38]} f3 {[%emt 0:00:57]} 38. Nc3+ {[%emt 0:00:45]} Kd4 {[%emt 0:00:15]} 39. Rh4+ {[%emt 0:00:08]} Ke3 {[%emt 0:00:32]} 40. Re4+ {[%emt 0:00:33]} Kd2 {[%emt 0:00:19]} 41. Rxe5 {[%emt 0:00:14]} Kxc2 {[%emt 0:00:13]} 42. gxf3 {[%emt 0:01:00]} Rxf3 {[%emt 0:01:15]} 43. Kg2 {[%emt 0:01:24]} Rf7 {[%emt 0:00:18]} 44. Rxc5 {[%emt 0:00:55]} Kxb2 {[%emt 0:00:14]} 45. Nb5 {[%emt 0:00:20]} Rg7+ {[%emt 0:00:42]} 46. Kh1 {[%emt 0:00:06]} Kxb3 {[%emt 0:01:07]} 47. Rxc7 {[%emt 0:00:05]} Rxc7 {[%emt 0:00:52]} 48. Nxc7 {[%emt 0:00:04]} a5 {[%emt 0:00:04]} 49. Nb5 {[%emt 0:00:12]} a4 {[%emt 0:00:40]} 50. Kg2 {[%emt 0:00:28]} Kc4 {[%emt 0:01:19]} 51. Na3+ {[%emt 0:00:19]} Kb3 {[%emt 0:00:09]} 52. Nb5 {[%emt 0:00:17]} Kb4 {[%emt 0:00:16]} 53. Nd4 {[%emt 0:01:39]} 1/2-1/2

[Event "FISCA Open 2022"]
[Site "Cap Aurora"]
[Date "2022.06.22"]
[Round "1.14"]
[White "Corbu, George-Alexandru"]
[Black "Barila, Stefana"]
[Result "1-0"]
[ECO "E52"]
[WhiteElo "1914"]
[BlackElo "1503"]
[Annotator "NA RC"]
[PlyCount "91"]
[EventDate "2022.06.22"]
[EventType "swiss"]
[EventCountry "ROU"]
[SourceTitle "playchess.com"]
[Source "ChessBase"]
[SourceQuality "1"]
[TimeControl "5400+30"]

1. d4 Nf6 2. c4 e6 3. Nc3 Bb4 4. e3 O-O 5. Bd2 b6 6. Nf3 Bb7 7. Bd3 d5 8. cxd5 Nxd5 9. Nxd5 Bxd2+ 10. Qxd2 Bxd5 11. Qc2 h6 12. Rc1 c5 13. e4 Bb7 14. dxc5 bxc5 15. O-O Nd7 16. Rfd1 a6 17. Qc3 Qc7 18. Nd2 Rac8 19. Bb1 Rfd8 20. Nb3 {[%emt 0:09:32]} Qb8 {[%emt 0:09:37]} 21. Qg3 {[%emt 0:00:30]} Qxg3 {[%emt 0:00:30]} 22. hxg3 {[%emt 0:00:30]} c4 {[%emt 0:00:30]} 23. Na5 {[%emt 0:00:30]} Nc5 {[%emt 0:00:30]} 24. Rxd8+ {[%emt 0:00:30]} Rxd8 {[%emt 0:00:30]} 25. f3 {[%emt 0:00:30]} Ba8 {[%emt 0:00:30]} 26. Nxc4 {[%emt 0:00:30]} Rb8 {[%emt 0:00:30]} 27. b3 {[%emt 0:00:30]} f6 {[%emt 0:00:30]} 28. Nd6 {[%emt 0:00:30]} Nd7 {[%emt 0:00:30]} 29. Bd3 {[%emt 0:00:30]} a5 {[%emt 0:00:30]} 30. Rc7 {[%emt 0:00:30]} Ne5 {[%emt 0:00:30]} 31. Bb5 {[%emt 0:00:30]} Rd8 {[%emt 0:00:30]} 32. Rc8 {[%emt 0:00:30]} Rxc8 {[%emt 0:00:30]} 33. Nxc8 {[%emt 0:00:30]} Kf7 {[%emt 0:00:30]} 34. Kf2 {[%emt 0:00:30]} Bc6 {[%emt 0:00:30]} 35. Be2 {[%emt 0:00:30]} Ke8 {[%emt 0:00:30]} 36. Nb6 {[%emt 0:00:30]} Ke7 {[%emt 0:00:30]} 37. Ke3 {[%emt 0:00:30]} Kd6 {[%emt 0:00:30]} 38. Kd4 {[%emt 0:00:30]} Nd7 {[%emt 0:00:30]} 39. Nc4+ {[%emt 0:00:30]} Kc7 {[%emt 0:00:30]} 40. Nxa5 {[%emt 0:00:30]} Ba8 {[%emt 0:00:30]} 41. b4 {[%emt 0:00:30]} Kb6 {[%emt 0:00:30]} 42. Nc4+ {[%emt 0:00:30]} Kc6 {[%emt 0:00:30]} 43. a4 {[%emt 0:00:30]} Nb6 {[%emt 0:00:30]} 44. Nxb6 {[%emt 0:00:30]} Kxb6 {[%emt 0:00:30]} 45. a5+ {[%emt 0:00:30]} Kc6 {[%emt 0:00:30]} 46. b5+ {[%emt 0:00:30]} 1-0

[Event "FISCA Open 2022"]
[Site "Cap Aurora"]
[Date "2022.06.23"]
[Round "2.1"]
[White "Petre, Nad-Titus"]
[Black "Sprincean, Lukas George"]
[Result "1-0"]
[ECO "A45"]
[WhiteElo "2297"]
[BlackElo "1664"]
[Annotator "TA"]
[PlyCount "63"]
[EventDate "2022.06.22"]
[EventType "swiss"]
[EventCountry "ROU"]
[SourceTitle "playchess.com"]
[Source "ChessBase"]
[SourceQuality "1"]
[TimeControl "5400+30"]

{[%evp 12,63,47,32,45,52,72,65,69,50,58,41,47,50,72,78,73,81,104,74,76,76,81,43,186,139,153,76,150,155,142,151,146,159,154,143,176,177,271,273,252,241,340,343,660,665,629,648,631,625,765,753,828,795]} 1. d4 {[%emt 0:02:28]} Nf6 {[%emt 0:00:15]} 2. Bg5 {[%emt 0:00:06]} Ne4 {[%emt 0:04:16]} 3. Bf4 {[%emt 0:01:09]} c5 {[%emt 0:03:04]} 4. f3 {[%emt 0:06:19]} Nf6 {[%emt 0:04:24]} 5. d5 {[%emt 0:00:54]} d6 {[%emt 0:03:46]} 6. e4 {[%emt 0:03:08]} g6 {[%emt 0:01:21]} 7. c4 {[%emt 0:00:54]} Bg7 {[%emt 0:00:45] A45: Trompowsky Attack.} 8. Nc3 {[%emt 0:00:05]} Nh5 {[%emt 0:08:27]} 9. Be3 {[%emt 0:00:32] [#]} e6 $146 {[%emt 0:06:01] White is slightly better.} ({Predecessor:} 9... Bxc3+ 10. bxc3 Qa5 11. g4 Nf6 12. Qb3 Nbd7 13. h4 Nb6 14. Qb5+ Qxb5 15. cxb5 Na4 {½-½ (66) Dobrov,V (2514)-Mikheev,S (2329) Vladimir 2009}) 10. g4 {[%emt 0:10:40]} Nf6 {[%emt 0:01:28]} 11. Qd2 {[%emt 0:04:21]} exd5 {[%emt 0:14:19]} 12. cxd5 {[%emt 0:00:54]} Nfd7 {[%emt 0:08:13]} 13. Be2 {[%emt 0:11:07] White is more active.} a6 {[%emt 0:03:17]} 14. a4 {[%emt 0:18:23] Inhibits b5.} Qa5 {[%emt 0:01:31]} 15. Ra3 {[%emt 0:08:29]} Ne5 {[%emt 0:07:30]} 16. h3 {[%emt 0:05:25]} Qb4 {[%emt 0:04:01]} 17. a5 {[%emt 0:02:08] [#] Ra4 is the strong threat.} Nc4 {[%emt 0:12:20]} (17... O-O $14) 18. Bxc4 $18 {[%emt 0:00:06]} Qxc4 {[%emt 0:00:02]} 19. Nge2 {[%emt 0:00:24]} (19. Bf4 $142) 19... Nd7 {[%emt 0:00:49]} (19... b5 $142) 20. Ra4 $36 {[%emt 0:06:58][%mdl 2048] Keeping Black busy.} Qb3 {[%emt 0:00:22]} 21. Nc1 {[%emt 0:00:30][%cal Be2c1,Bc1b3,Bb3d2,Bd2c4][%mdl 32]} Bxc3 {[%emt 0:00:11]} 22. Nxb3 {[%emt 0:00:10]} Bxd2+ 23. Nxd2 {[%emt 0:00:01]} (23. Kxd2 $6 Ne5 $11) 23... Ne5 {[%emt 0:01:37]} 24. Ra3 {[%emt 0:01:59]} O-O {[%emt 0:03:37]} (24... f6 $142 25. Rb3 Kd8) 25. f4 $18 {[%emt 0:02:21][%cal Bf3f4,Bf4e5][%mdl 32]} Nd7 {[%emt 0:00:03]} 26. Nc4 {[%emt 0:03:03]} f5 {[%emt 0:07:12]} (26... b6 {is a better defense.} 27. axb6 Rb8) 27. gxf5 {[%emt 0:01:13]} ({Don't do} 27. Nxd6 $6 fxe4 28. O-O (28. Nxe4 b5 $16) 28... h5 $18) 27... gxf5 {[%emt 0:00:02]} (27... Nf6 28. Nxd6 Rd8 29. Bxc5 Rxd6) 28. Rg1+ {[%emt 0:00:04] White is clearly winning.} Kh8 {[%emt 0:00:31]} 29. e5 {[%emt 0:01:24]} dxe5 {[%emt 0:00:10]} 30. fxe5 {[%emt 0:00:05] [#] Threatens to win with Bh6.} f4 {[%emt 0:00:44]} 31. Bd2 {[%emt 0:00:10]} f3 {[%emt 0:01:48]} 32. Kf2 {[%emt 0:00:31] Weighted Error Value: White=0.10 (very precise) /Black=0.50} 1-0

[Event "FISCA Open 2022"]
[Site "Cap Aurora"]
[Date "2022.06.23"]
[Round "2.2"]
[White "Angheluta, Ovidiu"]
[Black "Ardeleanu, Alin"]
[Result "0-1"]
[ECO "A36"]
[WhiteElo "1807"]
[BlackElo "2290"]
[Annotator "NA RC"]
[PlyCount "44"]
[EventDate "2022.06.22"]
[EventType "swiss"]
[EventCountry "ROU"]
[SourceTitle "playchess.com"]
[Source "ChessBase"]
[SourceQuality "1"]
[TimeControl "5400+30"]

1. e4 {[%emt 0:05:30]} c5 {[%emt 0:00:30]} 2. c4 {[%emt 0:00:47]} Nc6 {[%emt 0:00:27]} 3. g3 {[%emt 0:00:35]} g6 {[%emt 0:01:01]} 4. Bg2 {[%emt 0:00:06]} Bg7 {[%emt 0:00:04]} 5. Ne2 {[%emt 0:00:08]} a6 {[%emt 0:05:05]} 6. Nbc3 {[%emt 0:00:55]} b5 {[%emt 0:03:40]} 7. d3 {[%emt 0:02:19]} Rb8 $1 {[%emt 0:05:02]} 8. O-O $11 {[%emt 0:07:08]} d6 {[%emt 0:02:25]} 9. f4 {[%emt 0:08:44]} Nd4 {[%emt 0:05:30]} 10. h3 {[%emt 0:05:18]} e6 {[%emt 0:00:30]} 11. Kh2 {[%emt 0:00:30]} Ne7 {[%emt 0:00:30]} 12. Nxd4 {[%emt 0:00:30]} cxd4 {[%emt 0:00:30]} 13. Ne2 {[%emt 0:00:30]} bxc4 {[%emt 0:00:30]} 14. dxc4 {[%emt 0:00:30]} Qb6 {[%emt 0:00:30]} 15. Rf3 {[%emt 0:00:30]} Qc5 {[%emt 0:00:30]} 16. Rf1 {[%emt 1:04:30]} Qb6 {[%emt 0:36:41]} 17. Rf3 {[%emt 0:00:00]} Qc5 {[%emt 0:03:26]} 18. Rb3 {[%emt 0:00:00]} Rxb3 {[%emt 0:05:48]} 19. axb3 {[%emt 0:00:00]} O-O {[%emt 0:04:44]} 20. Bd2 {[%emt 0:00:00]} Bb7 {[%emt 0:10:46]} 21. Nc1 {[%emt 0:00:00]} Nc6 {[%emt 0:10:03]} 22. Nd3 {[%emt 0:00:00]} Qb6 {[%emt 0:00:01]} 0-1

[Event "FISCA Open 2022"]
[Site "Cap Aurora"]
[Date "2022.06.23"]
[Round "2.3"]
[White "Gilea, Lucian"]
[Black "Puia, Alexia-Teodora"]
[Result "1-0"]
[ECO "E18"]
[WhiteElo "2277"]
[BlackElo "1787"]
[Annotator "TA"]
[PlyCount "47"]
[EventDate "2022.06.22"]
[EventType "swiss"]
[EventCountry "ROU"]
[SourceTitle "playchess.com"]
[Source "ChessBase"]
[SourceQuality "1"]
[TimeControl "5400+30"]

{[%evp 16,47,21,17,23,27,107,81,79,116,178,81,92,101,84,53,75,62,54,28,104,95,124,113,197,208,313,337,476,468,467,465,420,433]} 1. d4 {[%emt 0:00:03]} Nf6 {[%emt 0:00:12]} 2. Nf3 {[%emt 0:00:08]} e6 {[%emt 0:00:15]} 3. g3 {[%emt 0:01:14]} d5 {[%emt 0:01:18]} 4. Bg2 {[%emt 0:00:06]} Be7 {[%emt 0:00:11]} 5. O-O {[%emt 0:00:13]} O-O {[%emt 0:00:05]} 6. c4 {[%emt 0:00:08]} b6 {[%emt 0:00:26]} 7. Nc3 {[%emt 0:00:45]} Bb7 {[%emt 0:00:14]} 8. cxd5 {[%emt 0:04:51]} exd5 {[%emt 0:00:26] 8...Nxd5 is the fancy move.} 9. Qb3 {[%emt 0:00:54]} Nc6 {[%emt 0:11:38] E18: Queen's Indian: Old Main Line (4 g3 Bb7 5 Bg2 Be7 6 0-0 0-0 7 Nc3).} 10. Rd1 {[%emt 0:03:52] [#]} Ba6 $146 {[%emt 0:08:03]} (10... Na5 $11 11. Qc2 Nc4) ({Predecessor:} 10... Re8 11. Bf4 Bf8 12. Bg5 Na5 13. Qc2 h6 14. Bxf6 Qxf6 15. e3 Rac8 16. Ne1 c6 17. Nd3 {0-1 (84) Sjugirov,S (2663)-Remizov,Y (2385) Chess.com INT 2020}) 11. Ne5 {[%emt 0:01:38]} Na5 {[%emt 0:03:44] White is better.} 12. Qa4 {[%emt 0:01:42] Threatens to win with b4. White is more active.} Qd6 {[%emt 0:08:45] Against b4} (12... Qe8 $16 {keeps fighting.}) 13. Nd3 {[%emt 0:10:22]} (13. Bf4 $18 {has better winning chances.}) 13... Bxd3 {[%emt 0:09:47]} 14. Rxd3 {[%emt 0:04:24]} c6 {[%emt 0:08:40]} 15. Qc2 {[%emt 0:03:20]} Rac8 {[%emt 0:07:16]} 16. Bh3 {[%emt 0:02:43][%cal Bg2h3,Bh3g4,Bg4f5][%mdl 32]} Rce8 {[%emt 0:01:28]} 17. f3 {[%emt 0:04:24][%cal Bf2f3,Bf3e4][%mdl 32]} Nh5 {[%emt 0:04:23] [#]} (17... Qd8 $11 {keeps the balance.}) 18. e4 $1 $16 {[%emt 0:03:56]} dxe4 {[%emt 0:14:06]} (18... Nxg3 $2 19. hxg3 Qxg3+ 20. Qg2 Qe1+ 21. Kh2 $18) 19. fxe4 {[%emt 0:00:26]} ({Resist} 19. Nxe4 $6 Qd5 $14) 19... Rd8 {[%emt 0:00:27]} (19... Qd8 $16) 20. Bg4 {[%emt 0:09:35]} Qg6 {[%emt 0:02:46]} (20... g6 $142 21. e5 Qb4) 21. Qe2 $18 {[%emt 0:01:22]} Nf6 {[%emt 0:00:47]} (21... Nxg3 $142 22. Rxg3 Rxd4) 22. Bf5 {[%emt 0:00:13]} Qh5 {[%emt 0:00:05] [#]} 23. g4 $1 {[%emt 0:00:08][%cal Bg3g4,Bg4g5][%mdl 32]} Qh4 {[%emt 0:00:57]} 24. g5 {[%emt 0:00:38] Weighted Error Value: White=0.12 (very precise) /Black=0.49} 1-0

[Event "FISCA Open 2022"]
[Site "Cap Aurora"]
[Date "2022.06.23"]
[Round "2.4"]
[White "Donici-Maier, David"]
[Black "Coca, Cristi-Iulian"]
[Result "0-1"]
[ECO "B47"]
[WhiteElo "1786"]
[BlackElo "2174"]
[Annotator "NA RC"]
[PlyCount "106"]
[EventDate "2022.06.22"]
[EventType "swiss"]
[EventCountry "ROU"]
[SourceTitle "playchess.com"]
[Source "ChessBase"]
[SourceQuality "1"]
[TimeControl "5400+30"]

1. e4 {[%emt 0:00:06]} c5 {[%emt 0:00:18]} 2. Nf3 {[%emt 0:00:17]} e6 {[%emt 0:00:10]} 3. d4 {[%emt 0:00:10]} cxd4 {[%emt 0:00:04]} 4. Nxd4 {[%emt 0:00:07]} a6 $14 {[%emt 0:00:02]} 5. g3 {[%emt 0:00:53]} Nf6 {[%emt 0:00:50]} 6. Bg2 {[%emt 0:00:07]} Qc7 {[%emt 0:01:57]} 7. O-O {[%emt 0:01:25]} Be7 {[%emt 0:00:41]} 8. Nc3 {[%emt 0:01:42]} O-O {[%emt 0:02:03]} 9. Kh1 {[%emt 0:03:34]} d6 {[%emt 0:00:47]} 10. f4 {[%emt 0:00:53]} Bd7 {[%emt 0:02:06]} 11. a4 {[%emt 0:02:15]} Nc6 {[%emt 0:00:52]} 12. Nb3 {[%emt 0:05:09]} Na5 {[%emt 0:12:53]} 13. Nxa5 {[%emt 0:03:40]} Qxa5 {[%emt 0:00:21]} 14. Qe2 {[%emt 0:05:00]} Bc6 {[%emt 0:05:34]} 15. Bd2 {[%emt 0:07:15]} Qc7 {[%emt 0:02:22]} 16. Rad1 {[%emt 0:03:19]} Rfd8 {[%emt 0:03:19]} 17. Be3 {[%emt 0:02:16]} b5 {[%emt 0:15:01]} 18. axb5 {[%emt 0:16:54]} axb5 {[%emt 0:00:05]} 19. Bd4 {[%emt 0:08:06]} b4 {[%emt 0:12:46]} 20. Nb5 {[%emt 0:06:50]} Qb7 {[%emt 0:02:24]} 21. Nxd6 {[%emt 0:04:43]} Rxd6 {[%emt 0:00:44]} 22. e5 {[%emt 0:02:09]} Rxd4 {[%emt 0:00:36]} 23. Rxd4 {[%emt 0:00:26]} Bxg2+ {[%emt 0:01:13]} 24. Qxg2 {[%emt 0:00:06]} Qxg2+ {[%emt 0:04:28]} 25. Kxg2 {[%emt 0:00:04]} Nd5 {[%emt 0:00:05]} 26. Kf3 {[%emt 0:02:29]} Rc8 {[%emt 0:02:38]} 27. Rd2 {[%emt 0:04:10]} g5 {[%emt 0:02:11]} 28. Re1 {[%emt 0:09:54]} Rc4 {[%emt 0:04:49]} 29. Rg2 {[%emt 0:02:00]} Kf8 {[%emt 0:04:19]} 30. h3 {[%emt 0:03:25]} Rd4 {[%emt 0:04:55]} 31. Re4 {[%emt 0:04:14]} Rd1 {[%emt 0:00:18]} 32. Rc4 {[%emt 0:01:15]} Rb1 {[%emt 0:08:54]} 33. c3 {[%emt 0:01:18]} bxc3 {[%emt 0:00:05]} 34. bxc3 {[%emt 0:00:09]} Rb3 {[%emt 0:00:31]} 35. Rd2 {[%emt 0:01:01]} Kg7 {[%emt 0:03:29]} 36. f5 {[%emt 0:00:30]} Ba3 {[%emt 0:01:50]} 37. fxe6 {[%emt 0:00:30]} fxe6 {[%emt 0:00:02]} 38. Rc6 {[%emt 0:00:28]} Kf7 {[%emt 0:01:34]} 39. Kg4 {[%emt 0:00:12]} Nxc3 {[%emt 0:00:37]} 40. Rd7+ {[%emt 0:00:44]} Be7 {[%emt 0:00:05]} 41. Rd3 {[%emt 0:00:25]} Rb4+ {[%emt 0:00:05]} 42. Kh5 {[%emt 0:00:34]} Ne4 {[%emt 0:00:19]} 43. Rf3+ {[%emt 0:00:13]} Kg7 {[%emt 0:00:03]} 44. g4 {[%emt 0:00:56]} Nc5 {[%emt 0:02:03]} 45. Rc7 {[%emt 0:00:31]} Rb7 {[%emt 0:00:03]} 46. Rc6 {[%emt 0:00:26]} Rd7 {[%emt 0:01:27]} 47. Rc3 {[%emt 0:00:25]} Nd3 {[%emt 0:00:05]} 48. R3c4 {[%emt 0:00:38]} Nf4+ {[%emt 0:00:20]} 49. Rxf4 {[%emt 0:00:08]} gxf4 {[%emt 0:00:03]} 50. Rxe6 {[%emt 0:00:11]} f3 {[%emt 0:00:04]} 51. Rc6 {[%emt 0:00:47]} f2 {[%emt 0:00:07]} 52. Rc1 {[%emt 0:00:05]} Bb4 {[%emt 0:00:04]} 53. Rf1 {[%emt 0:00:36]} Be1 {[%emt 0:00:03]} 0-1